Cogmind - Beta 17 @@@ ROGUE MODE // 2026.07.23 @ 23:34:58 Player: muppy Result: Self-destructed Performance ------------- Evolutions (1) 500 Regions Visited (2) 400 Robots Destroyed (10) 50 Value Destroyed (336) 336 Prototype IDs (0) 0 Alien Tech Used (0) 0 Bonus (0) 0 TOTAL SCORE: 1286 Bonus ------- None Cogmind --------- Core Integrity 285/400 Matter 300/300 Energy 75/100 System Corruption 0% Temperature Cool (0) Movement Core (50) Location -9/Materials Parts ------- > --- POWER (1) -------- (None) > --- PROPULSION (3) --- (None) > --- UTILITY (2) ------ Weight Redist. System Sensor Array > --- WEAPON (3) ------- (None) > --- INVENTORY (5) ---- Ion Engine Peak State ------------ > --- POWER ------------ Ion Engine > --- PROPULSION ------- Aluminum Leg Aluminum Leg > --- UTILITY ---------- Weight Redist. System Sensor Array > --- WEAPON ----------- EM Pulse Gun Assault Rifle Assault Rifle > --- INVENTORY -------- Ion Engine [Rating: 9] Favorites ----------- Power Ion Engine Engine Ion Engine Propulsion Aluminum Leg Leg Aluminum Leg Flight Unit Flight Unit Utility Sensor Array Device Sensor Array Storage Small Storage Unit Weapon Assault Rifle Energy Gun EM Pulse Gun Ballistic Gun Assault Rifle Build | -11 -10 -9 ------- Run | Yrd Mat Mat Slots Evolved 2 | . . 2 Power . | . . . Propulsion 1 | . . 1 Utility . | . . . Weapon 1 | . . 1 Parts Attached 16 | 7 8 1 Power 1 | 1 . . Engine 1 | 1 . . Core . | . . . Reactor . | . . . Propulsion 6 | 2 4 . Treads . | . . . Leg 4 | 2 2 . Wheel . | . . . Hover . | . . . Flight 2 | . 2 . Utility 3 | 1 2 . Device 2 | . 2 . Storage 1 | 1 . . Processor . | . . . Hackware . | . . . Protection . | . . . Artifact . | . . . Weapon 6 | 3 2 1 Energy Gun 2 | 1 1 . Energy Cannon . | . . . Ballistic Gun 4 | 2 1 1 Ballistic Cannon . | . . . Launcher . | . . . Special Weapon . | . . . Impact Weapon . | . . . Slashing Weapon . | . . . Piercing Weapon . | . . . Special Melee Weapon . | . . . Unidentified Prototypes . | . . . Parts Lost 7 | . . 7 Power 1 | . . 1 Propulsion 2 | . . 2 Utility . | . . . Weapon 4 | . . 4 Highest Loss Streak 6 | . . 6 To Critical Strikes . | . . . Average Backups 1 | 1 1 1 Power . | . . 1 Propulsion . | . . . Utility . | . . . Weapon . | 1 1 . Tool/Special . | . . . Unused Backups 1 | . . 1 Power 1 | . . 1 Propulsion . | . . . Utility . | . . . Weapon . | . . . Tool/Special . | . . . Average Slot Usage (%) 92 | . 97 79 Engine 12 | . 13 10 Leg 25 | . 27 20 Device 20 | . 19 22 Storage 5 | . 7 . Energy Gun 5 | . 4 7 Ballistic Gun 22 | . 23 20 Peak Build Rating 9 | 6 8 9 Average Rating 7 | 3 7 8 On Entrance 4 | . 6 8 Avg Prop Armor Cover (%) . | . . . Naked Turns . | . . . Heaviest Build 15 | 14 15 12 Greatest Support 26 | 20 26 26 Greatest Overweight (x) 1 | 1 1 . Average Overweight (x) . | . . . Largest Inventory Capacity 8 | 8 8 5 Average Capacity 6 | 6 6 5 Most Carried 5 | 5 4 2 Average Carried 1 | 1 1 1 Final Capacity 8 | 8 5 5 Final Carried 2 | 1 2 1 Class Distribution -------------------- 82% | Mutant 17% | Skirmisher Dominant Class ---------------- Mutant | -10/Materials Skirmisher | -9/Materials Resources | -11 -10 -9 ----------- Run | Yrd Mat Mat Matter Collected 602 | 244 277 81 Remotely . | . . . Salvage Created 483 | . 316 167 Parts 28 | . 18 10 Haulers Intercepted 1 | . 1 . Recyclers Shooed 1 | . 1 . Parts Field Recycled . | . . . Retrieved Matter . | . . . Parts Self-Destructed . | . . . Prevented . | . . . Parts Restored . | . . . Kills | -11 -10 -9 ------- Run | Yrd Mat Mat Combat Hostiles Destroyed 8 | . 5 3 Guns 8 | . 5 3 Classes Destroyed 4 | . 3 1 Hauler 1 | . 1 . Recycler 1 | . 1 . Grunt 5 | . 5 . Sentry 3 | . . 3 Best Kill Streak 3 | . 3 3 Combat Bots Only 3 | . 2 3 Max Kills in Single Turn 1 | . 1 1 Gunslinging . | . . . Exploded . | . . . Melee . | . . . Uniques/NPCs Destroyed . | . . . Combat | -11 -10 -9 -------- Run | Yrd Mat Mat Hostile Shots Fired 87 | . 32 55 Missed 26 | . 12 14 Hits 61 | . 20 41 Projectile 61 | . 20 41 Critical Strikes 2 | . . 2 Damage Taken 849 | . 241 608 Core 128 | . 13 115 Absorbed by Shields . | . . . Regen/Repaired (Parts) 20 | . 20 . Core Remaining (%) 97 | 100 94 . Volleys Fired 45 | . 25 20 Largest 3 | . 2 3 Hottest 80 | . 60 80 Shots Fired 84 | . 50 34 Gun 84 | . 50 34 Cannon . | . . . Launcher . | . . . Special . | . . . Kinetic 73 | . 41 32 Thermal . | . . . Explosive . | . . . Electromagnetic 11 | . 9 2 Robot Hit Streak 9 | . 6 9 Robot Miss Streak 4 | . 4 1 Penetration Max . | . . . Secondary Targets 1 | . 1 . Max Gunslinging Chain 1 | . 1 . Shots Hit Robots 56 | . 31 25 Core Hits 19 | . 12 7 Critical Kills . | . . . Critical Parts Destroyed . | . . . Critical Strikes . | . . . Melee Attacks . | . . . Impact . | . . . Slashing . | . . . Piercing . | . . . Sneak Attacks . | . . . Combat Hostiles . | . . . Follow-up Attacks . | . . . Damage Inflicted 738 | . 445 293 Guns 728 | . 435 293 Cannons . | . . . Explosions . | . . . Melee . | . . . Ramming 10 | . 10 . Kinetic 645 | . 364 281 Thermal . | . . . Explosive . | . . . Electromagnetic 83 | . 71 12 Impact . | . . . Slashing . | . . . Piercing . | . . . Highest Corruption 1 | . 1 . Average Corruption 1 | . 1 . Corruption Purged . | . . . Corruption Blocked . | . . . Overload Shots . | . . . Overflow Damage . | . . . Projectiles . | . . . Explosions . | . . . Melee . | . . . Knockbacks . | . . . Impact . | . . . Kinetic . | . . . Secondary . | . . . Self-Inflicted Damage . | . . . Shots . | . . . Rammed . | . . . Targets Rammed 1 | . 1 . Kicked 1 | . 1 . Crushed . | . . . Highest Temperature 48 | . 48 18 Average Temperature 22 | . 25 7 Received Heat Transfer 342 | . 135 207 Siege Activations . | . . . Martial Activations . | . . . Shielding Activations . | . . . Robots Disrupted . | . . . Combat Hostiles . | . . . Robots Corrupted . | . . . Combat Hostiles . | . . . Parts Fried . | . . . Impact Corruptions . | . . . Robots Melted . | . . . Combat Hostiles . | . . . Parts Melted . | . . . Heat Transferred . | . . . Parts Sabotaged . | . . . Parts Stolen . | . . . Parts Stripped . | . . . Power Chain Reactions . | . . . Alert | -11 -10 -9 ------- Run | Yrd Mat Mat Maximum Alert Level . | . . . Low Security (%) 100 | 100 100 100 Level 1 . | . . . Level 2 . | . . . Level 3 . | . . . Level 4 . | . . . Level 5 . | . . . High Security . | . . . Max Security . | . . . Peak Influence 50 | . 50 50 Initial . | . . . Average 9 | . 12 4 Influence Increases 267 | . 162 105 Destroy 0b10 Robot/C 160 | . 100 60 Destroy 0b10 Robot/NC 10 | . 10 . Destroy Leader 52 | . 22 30 Successful Hack 29 | . 29 . Disable Machine 15 | . . 15 Destroy Structure 1 | . 1 . Influence Decreases 237 | . 162 75 Time Decay 192 | . 162 30 Lost Part 45 | . . 45 Squads Dispatched 1 | . 1 . Investigation 1 | . 1 . Extermination . | . . . Reinforcement . | . . . Assault . | . . . Garrison . | . . . Intercept . | . . . Searches Triggered . | . . . Construction Impeded . | . . . Haulers Reinforced . | . . . Active Scanning Responses . | . . . Cargo Convoy Interrupts . | . . . Stealth | -11 -10 -9 --------- Run | Yrd Mat Mat Distress Signals . | . . . Communications Jammed . | . . . Distress Signals . | . . . Times Spotted 15 | . 6 9 Peak Tracking Total 5 | . 3 5 Tactical Retreats . | . . . Traps | -11 -10 -9 ------- Run | Yrd Mat Mat Traps Triggered 2 | . 2 . Indirectly . | . . . Trap Hack Attempts . | . . . Triggered . | . . . Disarmed . | . . . Reprogrammed . | . . . Reused . | . . . Traps Extracted . | . . . Installed . | . . . Triggered . | . . . Machines | -11 -10 -9 ---------- Run | Yrd Mat Mat Machines Disabled 1 | . . 1 Max in Single Turn 1 | . . 1 Machines Repaired . | . . . Machines Dismantled . | . . . Machines Sabotaged . | . . . Overloaded Fab Kills . | . . . Hacking | -11 -10 -9 --------- Run | Yrd Mat Mat Machines Accessed 5 | . 5 . Terminals 3 | . 3 . Fabricators . | . . . Repair Stations 1 | . 1 . Recycling Units 1 | . 1 . Scanalyzers . | . . . Garrison Access . | . . . Total Hacks 14 | . 14 . Successful 12 | . 12 . Failed 2 | . 2 . Catastrophic . | . . . Database Lockouts . | . . . Manual . | . . . Terminals 8 | . 8 . Fabricators . | . . . Repair Stations 3 | . 3 . Recycling Units 3 | . 3 . Scanalyzers . | . . . Garrison Access . | . . . Terminal Hacks 7 | . 7 . Record 2 | . 2 . Alert Level 1 | . 1 . Locate Traps 1 | . 1 . Dispatch Records 2 | . 2 . Investigation Status 1 | . 1 . Fabricator Hacks . | . . . Repair Station Hacks 2 | . 2 . Scan Component 1 | . 1 . Repair 1 | . 1 . Recycling Unit Hacks 3 | . 3 . Process 1 | . 1 . Report Inventory 1 | . 1 . Retrieve Matter 1 | . 1 . Scanalyzer . | . . . Garrison Access Hacks . | . . . Unauthorized Hacks . | . . . Terminals . | . . . Fabricators . | . . . Repair Stations . | . . . Recycling Units . | . . . Scanalyzers . | . . . Garrison Access . | . . . Data Cores Recovered . | . . . Used . | . . . Hacking Detections 4 | . 4 . Full Trace Events 1 | . 1 . Feedback Events . | . . . Feedback Blocked . | . . . Robot Schematics Acquired . | . . . Robots Built . | . . . Authchips . | . . . Time . | . . . Total Robot Build Rating . | . . . Part Schematics Acquired . | . . . Parts Built . | . . . Authchips . | . . . Time . | . . . Total Part Build Rating . | . . . Part Studies Acquired . | . . . Parts Repaired 1 | . 1 . Time 13 | . 13 . Parts Recycled . | . . . Recycled Matter 120 | . 120 . Retrieved Matter 120 | . 120 . Retrieved Components . | . . . Parts Scanalyzed . | . . . Part Schematics Acquired . | . . . Parts Damaged . | . . . Bothacking | -11 -10 -9 ------------ Run | Yrd Mat Mat Used RIF Installer . | . . . Robots Hacked . | . . . Non-combat . | . . . Combat . | . . . Robot Hacks Applied . | . . . Relay Couplers Released . | . . . Fabnet Peak Effective % . | . . . Robots Rewired . | . . . Allies Hacked . | . . . Hacks Repelled . | . . . Allies | -11 -10 -9 -------- Run | Yrd Mat Mat Total Allies . | . . . Largest Group . | . . . Highest-Rated Group . | . . . Highest-Rated Ally . | . . . Total Orders . | . . . Ally Attacks . | . . . Total Damage . | . . . Kills . | . . . Allies Corrupted . | . . . Allies Melted . | . . . Intel | -11 -10 -9 ------- Run | Yrd Mat Mat Active Infowar (turns) 765 | . 537 228 Sensors 765 | . 537 228 Robot Analysis Total . | . . . Derelict Logs Recovered . | . . . Drone Launches . | . . . Drone Recoveries . | . . . Exploration | -11 -10 -9 ------------- Run | Yrd Mat Mat Turns Passed 848 | 68 552 228 Spaces Moved 562 | 57 351 154 Core 43 | 24 . 19 Treads . | . . . Legs 517 | 33 349 135 Wheels . | . . . Hover . | . . . Flight 2 | . 2 . Fastest Speed 40 | 50 40 50 Average Speed 115 | 95 119 111 Slowest Speed 120 | 120 120 120 Overloaded Moves . | . . . Propulsion Burnouts . | . . . Robots Hopped . | . . . Potential Cave-ins . | . . . Cave-ins Triggered . | . . . Exploration Rate (%) 25 | 3 58 16 Regions Visited 2 Branch Regions . Pre-discovered Areas . | . . . Known Exits Taken . | . . . Unknown Exits Taken 2 | 1 1 . Scrap Searched . | . . . Spaces Dug . | . . . Terrain Destroyed . | . . . Melee . | . . . Projectile . | . . . AOE . | . . . Terrain Rammed . | . . . Walls Destroyed . | . . . Machines Disabled . | . . . Actions | -11 -10 -9 --------- Run | Yrd Mat Mat Total 680 | 70 433 177 Wait 23 | . 23 . Move 560 | 56 350 154 Hop . | . . . Pick Up 20 | 6 13 1 Fast Attach 1 | 1 . . Attach 16 | 6 8 2 Detach 1 | 1 . . Swap 6 | . 6 . Drop 7 | . 7 . Fire 45 | . 25 20 Melee . | . . . Ram . | . . . Kick 1 | . 1 . Crush . | . . . Escape Stasis . | . . . Rewire . | . . . Trap . | . . . Miscellaneous . | . . . Route ------- -11/Scrapyard -10/Materials (discovered 2 exits: [*Mat x2]) -9/Materials History --------- Turn | Location | Event 5 | -11/Scrapyard | Discovered new exit (range 16) 69 | -11/Scrapyard | Entered Materials 283 | -10/Materials | Discovered new exit (range 16) 313 | -10/Materials | Build established: Mutant 446 | -10/Materials | Repaired Ion Engine 489 | -10/Materials | Discovered new exit (range 5) 621 | -10/Materials | Entered another Materials area 621 | -9/Materials | Evolved 2 slots: Propulsion x1, Weapon x1 849 | -9/Materials | Self-destructed Last Messages --------------- 00789_ Hadron Collector disabled. 00811_ Aluminum Leg destroyed. 00814_ Assault Rifle destroyed. 00820_ Y-45 Defender destroyed. 00823_ Assault Rifle destroyed. 00825_ Acquired Hvy. Assault Rifle. 00826_ Ion Engine destroyed. 00826_ Critical hit (Burn: +37). 00827_ R-06 Scavenger collects Lgt. Armor Plating. 00829_ Y-45 Defender destroyed. 00830_ Aluminum Leg destroyed. 00832_ R-06 Scavenger collects Lgt. Treads. 00835_ Y-45 Defender destroyed. 00835_ R-06 Scavenger collects Beam Rifle. 00838_ R-06 Scavenger collects Imp. Ion Engine. 00838_ R-06 Scavenger collects Heat Sink. 00839_ Hvy. Assault Rifle destroyed. 00840_ Acquired 81 matter. 00842_ R-06 Scavenger collects Heat Sink. Map ----- +----------------------------------------------------+ | ?????????????????????????????????????????????????? | | ?????????????????????????????????????????????????? | | ?????????????????????????????????????????????????? | | ?????????????????????????????????????????????????? | | ?????????????????????????????????????????????????? | | ?????????????????????????????????????????????????? | | ?????????????????????????????????????????????????? | | ?????????????????????????????????????????????????? | | ??????????????????????????? ???????????????????? | | ?????????????????????????## ???????????????????? | | ?????????????????????????# ?###############??? | | ????????????????????????? ?# # #??? | | ?????????????????????????? ?# # #??? | | ?????????????????????????? ?# ! # #??? | | ?????????????????????????? ?# # #??? | | ??????????????????????????# #?# """ # #??? | | ??????????????????????????# #?# """ # #??? | | ??????????????????????????# #?# """ + #??? | | ??????????????????????????# #?# # #??? | | ??????????????????????????# #?# # #??? | | ??????????????????????????# #?# # #??? | | ??????????????????????????# #?# "" # #??? | | ?????????????##???????????# #?# ####+####### | | ?????????????# g ###+#### ######+### #"T"# | | ?????????? w | | ?????????? gg @ | | ?????????? r ^ | | ?????????????#! #################+### | | ?????????????##??????????????# # """ | | ?????????????????????????????# """! "" # """"" | | ?????????????????????????????# """=""" # """"" | | ?????????????????????????????# """%""" # """"" | | ?????????????????????????????# """ ! " # """ | | ?????????????????????????????# % # | | ?????????????????????????????# # | | ?????????????????????????????# # | | ?????????????????????????????########### | | ???????????????????????????????????????# | | ???????????????????????????????????????#######"T"# | | ?????????????????????????????????????????????#"""# | | ?????????????????????????????????????????????##### | | ?????????????????????????????????????????????????? | | | | | | | | | | | | | | | | | +----------------------------------------------------+ Best States ------------- Heat Dissipation 28 Energy Generation 10 Energy Capacity 250 Matter Stores 300 Matter Capacity 300 Sight Range 16 Robot Scan Range 14 Terrain Scan Density 10 Additional Mass Support 6 Evasion (%) 62 Item Schematics ----------------- None Robot Schematics ------------------ None Fabricated ------------ Nothing Repaired ---------- Ion Engine | 66% | -10/Materials Studied --------- None Alien Tech Used ----------------- None Achievements -------------- Organ Harvest Challenges ------------ None Game ------ Seed PlatingPlatingMaul Manual? 0 Play Time 00:13:38 Cumulative 8.3 hours Start 2026.07.23 @ 23:13:48 End 2026.07.23 @ 23:34:58 Sessions 1 Manual Loads 0 Difficulty Rogue Special Mode None Game No. 16 Rogue 16 Adventurer 0 Explorer 0 Win Type - Total 0 Types 0/0/0/0/0/0/0/0/0/0 Lore% 6 Gallery% 14 Achievement% 9 Wizard Run 0 Options --------- Layout 1 ASCII 0 Keyboard 0 Movement Mouse Keybinds 0 Fullscreen 1 Font 48/SmallcapsGlow++ Map View 50x35 Zoom Use 0% Tactical HUD 1 Map Filters NONE Filters NONE Steam 1 RUN: 868ee659-b9ab-4eb2-a242-73cf386a7574